fUST/lending_fUST_20260526
["ID","MTS","AMOUNT","RATE_DAILY","PERIOD"]
[423004131,1779741044000,-500.0,9.315e-05,2]
[423004065,1779741044000,-1011.82,9.315e-05,2]
[423004117,1779741044000,-5618.22,9.315e-05,2]
[423004112,1779741044000,-2140.42,9.315e-05,2]
[423004116,1779741044000,-500.0,9.315e-05,2]
[423004101,1779741044000,-500.0,9.315e-05,2]
[423004103,1779741044000,-1613.61,9.315e-05,2]
[423004068,1779741044000,-333.69,9.315e-05,2]
[423004074,1779741044000,-773.67,9.315e-05,2]
[423004073,1779741044000,-500.0,9.315e-05,2]
[423004072,1779741044000,-500.0,9.315e-05,2]
[423004070,1779741044000,-809.26,9.315e-05,2]
[423004069,1779741044000,-500.0,9.315e-05,2]
[423004071,1779741044000,-500.0,9.315e-05,2]
[423004079,1779741044000,-500.0,9.315e-05,2]
[423004066,1779741044000,-500.0,9.315e-05,2]
[423004077,1779741044000,-500.0,9.315e-05,2]
[423004091,1779741044000,-4007.39,9.315e-05,2]
[423004094,1779741044000,-220.44475696,9.315e-05,2]
[423004133,1779741044000,-30307.92,9.315e-05,2]
[423004075,1779741044000,-500.0,9.315e-05,2]
[423004080,1779741044000,-954.23,9.315e-05,2]
[423004102,1779741044000,-500.0,9.315e-05,2]
[423004100,1779741044000,-637.75,9.315e-05,2]
[423004088,1779741044000,-2548.57,9.315e-05,2]
[423004097,1779741044000,-1027.48,9.315e-05,2]
[423004099,1779741044000,-500.0,9.315e-05,2]
[423004082,1779741044000,-1600.49,9.315e-05,2]
[423004098,1779741044000,-1638.68,9.315e-05,2]
[423004086,1779741044000,-532.6,9.315e-05,2]
[423004090,1779741044000,-636.68624487,9.315e-05,2]
[423004084,1779741044000,-4030.62,9.315e-05,2]
[423004095,1779741044000,-981.13,9.315e-05,2]
[423004093,1779741044000,-579.88,9.315e-05,2]
[423004096,1779741044000,-2238.12,9.315e-05,2]
[423004154,1779741045000,-541.46,9.589e-05,2]
[423004163,1779741045000,-500.0,9.589e-05,2]
[423004153,1779741045000,-500.0,9.589e-05,2]
[423004155,1779741045000,-500.0,9.589e-05,2]
[423004161,1779741045000,-500.0,9.589e-05,2]
[423004156,1779741045000,-613.7,9.589e-05,2]
[423004159,1779741045000,-773.44,9.589e-05,2]
[423004165,1779741045000,-500.0,9.589e-05,2]
[423004164,1779741045000,-500.0,9.589e-05,2]
[423004160,1779741045000,-1459.56,9.589e-05,2]
[423004162,1779741045000,-660.54,9.589e-05,2]
[423004158,1779741045000,-500.0,9.589e-05,2]
[423004152,1779741045000,-500.0,9.589e-05,2]
[423004157,1779741045000,-500.0,9.589e-05,2]
[423004149,1779741045000,-778.69,9.589e-05,2]
[423004137,1779741045000,-500.0,9.315e-05,2]
[423004141,1779741045000,-500.0,9.315e-05,2]
[423004166,1779741045000,-1651.32,9.589e-05,2]
[423004138,1779741045000,-500.0,9.315e-05,2]
[423004136,1779741045000,-6625.04,9.315e-05,2]
[423004135,1779741045000,-1512.1,9.315e-05,2]
[423004140,1779741045000,-648.71,9.315e-05,2]
[423004139,1779741045000,-1511.89,9.315e-05,2]
[423004148,1779741045000,-500.0,9.589e-05,2]
[423004150,1779741045000,-1068.32,9.589e-05,2]
[423004147,1779741045000,-500.0,9.589e-05,2]
[423004145,1779741045000,-500.0,9.589e-05,2]
[423004144,1779741045000,-624.91,9.589e-05,2]
[423004143,1779741045000,-2192.6329,9.589e-05,2]
[423004142,1779741045000,-10828.57181256,9.47e-05,2]
[423004146,1779741045000,-500.0,9.589e-05,2]
[423004151,1779741045000,-189.9016663,9.589e-05,2]
[423004167,1779741045000,-500.0,9.589e-05,2]
[423004188,1779741045000,-809.26,9.589e-05,2]
[423004170,1779741045000,-500.0,9.589e-05,2]
[423004201,1779741045000,-693.45212091,9.589e-05,2]
[423004196,1779741045000,-500.0,9.589e-05,2]
[423004195,1779741045000,-268.31446788,9.589e-05,2]
[423004198,1779741045000,-1600.49,9.589e-05,2]
[423004197,1779741045000,-954.23,9.589e-05,2]
[423004194,1779741045000,-231.68553212,9.589e-05,2]
[423004192,1779741045000,-773.67,9.589e-05,2]
[423004193,1779741045000,-500.0,9.589e-05,2]
[423004199,1779741045000,-98.64414307,9.589e-05,2]
[423004186,1779741045000,-500.0,9.589e-05,2]
[423004184,1779741045000,-1011.82,9.589e-05,2]
[423004182,1779741045000,-185.65638951,9.589e-05,2]
[423004185,1779741045000,-500.0,9.589e-05,2]
[423004191,1779741045000,-500.0,9.589e-05,2]
[423004181,1779741045000,-500.0,9.589e-05,2]
[423004190,1779741045000,-339.38239356,9.589e-05,2]
[423004183,1779741045000,-517.03,9.589e-05,2]
[423004169,1779741045000,-500.0,9.589e-05,2]
[423004176,1779741045000,-500.0,9.589e-05,2]
[423004173,1779741045000,-500.0,9.589e-05,2]
[423004177,1779741045000,-732.77,9.589e-05,2]
[423004175,1779741045000,-500.0,9.589e-05,2]
[423004172,1779741045000,-800.66,9.589e-05,2]
[423004171,1779741045000,-500.0,9.589e-05,2]
[423004178,1779741045000,-1247.83,9.589e-05,2]
[423004187,1779741045000,-500.0,9.589e-05,2]
[423004179,1779741045000,-500.0,9.589e-05,2]
[423004200,1779741045000,-525.53301509,5.057e-05,2]
[423004180,1779741045000,-500.0,9.589e-05,2]
[423004189,1779741045000,-201.49630241,9.589e-05,2]
[423004174,1779741045000,-1158.05,9.589e-05,2]
[423004168,1779741045000,-500.0,9.589e-05,2]
[423004217,1779741073000,-250.07286682,6.682e-05,2]
[423004218,1779741089000,-3898.19723225,8.136e-05,2]
[423004220,1779741106000,-250.07286682,8.136e-05,2]
[423004221,1779741118000,-851.72990093,8.136e-05,2]
[423004222,1779741129000,-300.0,5.057e-05,2]
[423004223,1779741149000,-200.0,5.057e-05,2]
[423004224,1779741171000,-259.87976044,5.057e-05,2]
[423004225,1779741182000,-500.0,5.057e-05,2]
[423004227,1779741224000,-160.0,8.019e-05,2]
[423004228,1779741236000,-160.0,8.019e-05,2]
[423004229,1779741278000,-160.0,8.019e-05,2]
[423004230,1779741290000,-160.0,8.019e-05,2]
[423004231,1779741290000,-270.98403231,8.118e-05,2]
[423004235,1779741331000,-160.0,8.118e-05,2]
[423004236,1779741343000,-300.0,8.216e-05,2]
[423004237,1779741384000,-300.0,8.216e-05,2]
[423004238,1779741438000,-300.0,8.215e-05,2]
[423004239,1779741491000,-300.0,8.216e-05,2]
[423004240,1779741544000,-626.73270302,8.215e-05,2]
[423004241,1779741590000,-300.0,8.214e-05,2]
[423004284,1779742231000,-200.0,7.711e-05,2]
[423004288,1779742232000,-172.70787,7.906e-05,2]
[423004286,1779742232000,-422.36435167,7.809e-05,2]
[423004290,1779742232000,-66.57672435,7.957e-05,2]
[423004315,1779742232000,-639.75944242,8.018e-05,2]
[423004295,1779742232000,-582.86327565,7.957e-05,2]
[423004309,1779742232000,-500.0,8.018e-05,2]
[423004311,1779742232000,-335.71330759,8.018e-05,2]
[423004307,1779742232000,-500.0,8.018e-05,2]
[423004305,1779742232000,-524.7490121,8.018e-05,2]
[423004299,1779742232000,-1200.0,8.017e-05,2]
[423004297,1779742232000,-620.46537599,8.017e-05,2]
[423004313,1779742232000,-500.0,8.018e-05,2]
[423004301,1779742232000,-500.0,8.018e-05,2]
[423004327,1779742232000,-500.0,8.018e-05,2]
[423004303,1779742232000,-500.0,8.018e-05,2]
[423004329,1779742232000,-500.0,8.018e-05,2]
[423004349,1779742232000,-490.38322218,8.018e-05,2]
[423004347,1779742232000,-500.0,8.018e-05,2]
[423004345,1779742232000,-500.0,8.018e-05,2]
[423004341,1779742232000,-500.0,8.018e-05,2]
[423004343,1779742232000,-169.91572829,8.018e-05,2]
[423004339,1779742232000,-500.0,8.018e-05,2]
[423004337,1779742232000,-500.0,8.018e-05,2]
[423004317,1779742232000,-204.41045954,8.018e-05,2]
[423004333,1779742232000,-500.0,8.018e-05,2]
[423004331,1779742232000,-500.0,8.018e-05,2]
[423004321,1779742232000,-500.0,8.018e-05,2]
[423004323,1779742232000,-500.0,8.018e-05,2]
[423004319,1779742232000,-500.0,8.018e-05,2]
[423004325,1779742232000,-500.0,8.018e-05,2]
[423004335,1779742232000,-500.0,8.018e-05,2]
[423004413,1779742238000,-620.46537599,8.017e-05,2]
[423004408,1779742238000,-620.46537599,8.017e-05,2]
[423004410,1779742238000,-620.46537599,8.017e-05,2]
[423004405,1779742238000,-317.94114849,8.017e-05,2]
[423004407,1779742238000,-440.47738224,8.017e-05,2]
[423004414,1779742238000,-620.46537599,8.017e-05,2]
[423004406,1779742238000,-179.98799375,8.017e-05,2]
[423004404,1779742238000,-302.5242275,8.017e-05,2]
[423004409,1779742238000,-620.46537599,8.017e-05,2]
[423004412,1779742238000,-620.46537599,8.017e-05,2]
[423004411,1779742238000,-620.46537599,8.017e-05,2]
[423004416,1779742238000,-620.46537599,8.017e-05,2]
[423004417,1779742238000,-620.46537599,8.017e-05,2]
[423004418,1779742238000,-620.46537599,8.017e-05,2]
[423004421,1779742238000,-1380418.3763485,8.019e-05,2]
[423004419,1779742238000,-7858.38765404,8.019e-05,2]
[423004420,1779742238000,-34457.50286382,8.019e-05,2]
[423004424,1779742238000,-1150.31810566,8.019e-05,2]
[423004422,1779742238000,-52509.61438798,8.019e-05,2]
[423004425,1779742238000,-1768.5551728,8.019e-05,2]
[423004423,1779742238000,-1803.15455354,8.019e-05,2]
[423004415,1779742238000,-620.46537599,8.017e-05,2]
[423004453,1779742243000,-1779.32204679,8.019e-05,2]
[423004465,1779742246000,-9285.99918472,8.019e-05,2]
[423004466,1779742246000,-9844.4896943,8.019e-05,2]
[423004475,1779742283000,-296.65730314,8.017e-05,2]
[423004476,1779742295000,-500.0,8.017e-05,2]
[423004477,1779742337000,-300.0,8.016e-05,2]
[423004478,1779742390000,-500.0,8.017e-05,2]
[423004479,1779742442000,300.0,8.018e-05,2]
[423004480,1779742457000,347.86915654,8.016e-05,2]
[423004482,1779742460000,500.0,8.016e-05,2]
[423004483,1779742460000,500.0,8.016e-05,2]
[423004484,1779742460000,44.76374346,8.016e-05,2]
[423004481,1779742460000,500.0,8.016e-05,2]
[423004485,1779742497000,-455.23625654,8.016e-05,2]
[423004486,1779742550000,-625.85887747,8.015e-05,2]
[423004489,1779742590000,326.2803423,0.0001453,30]
[423004493,1779742591000,284.92775374,0.00014863,30]
[423004492,1779742591000,326.2803423,0.00014863,60]
[423004491,1779742591000,326.2803423,0.00014697,60]
[423004490,1779742591000,284.92775374,0.00014697,30]
[423004494,1779742603000,-500.0,8.014e-05,2]
[423004495,1779742603000,243.43923898,0.0001453,30]
[423004496,1779742603000,243.43923898,0.00014613,30]
[423004497,1779742604000,178.10354661,0.00016943,120]
[423004498,1779742604000,243.43923898,0.00014697,60]
[423004499,1779742604000,243.43923898,0.0001478,60]
[423004500,1779742604000,243.43923898,0.00014863,60]
[423004501,1779742604000,243.43923898,0.00014947,120]
[423004502,1779742604000,708.32461486,0.00014467,30]
[423004504,1779742604000,708.32461486,0.00014547,30]
[423004506,1779742604000,708.32461486,0.00014628,30]
[423004503,1779742604000,708.32461486,0.00014507,30]
[423004505,1779742604000,708.32461486,0.00014587,30]
[423004508,1779742604000,708.32461486,0.00014708,60]
[423004509,1779742604000,708.32461486,0.00014748,60]
[423004511,1779742604000,708.32461486,0.00014829,60]
[423004510,1779742604000,708.32461486,0.00014789,60]
[423004512,1779742604000,708.32461486,0.00014869,60]
[423004513,1779742604000,708.32461486,0.00014909,60]
[423004514,1779742604000,708.32461486,0.0001495,120]
[423004507,1779742604000,708.32461486,0.00014668,30]
[423004516,1779742605000,708.32461486,0.0001503,120]
[423004515,1779742605000,708.32461486,0.0001499,120]
[423004517,1779742656000,-300.0,8.013e-05,2]
[423004518,1779742921000,152.0,0.00014724,30]
[423004519,1779742943000,152.0,0.00014724,30]
[423004524,1779743220000,-121.78430561,6.988e-05,2]
[423004525,1779743273000,-469.7593799,6.988e-05,2]
[423004529,1779743327000,-451.87088167,7.375e-05,2]
[423004530,1779743340000,152.0,0.00014724,30]
[423004532,1779743380000,-151.0,7.153e-05,2]
[423004601,1779743433000,-152.0,7.491e-05,2]
[423004603,1779743434000,-176.660717,7.767e-05,2]
[423004604,1779743434000,-98.682283,7.817e-05,2]
[423004605,1779743434000,-1101.317717,7.817e-05,2]
[423004602,1779743434000,-624.657,7.761e-05,2]
[423004606,1779743434000,-300.0,7.818e-05,2]
[423004607,1779743434000,-300.0,7.818e-05,2]
[423004609,1779743434000,-300.0,7.818e-05,2]
[423004613,1779743434000,-423.92082829,7.819e-05,2]
[423004608,1779743434000,-300.0,7.818e-05,2]
[423004610,1779743434000,-8476.21657127,7.819e-05,2]
[423004611,1779743434000,-6014.38739228,7.819e-05,2]
[423004612,1779743434000,-482.43085153,7.819e-05,2]
[423004644,1779743438000,-408491.00621265,7.819e-05,2]
[423004645,1779743438000,-149.56058437,7.819e-05,2]
[423004647,1779743438000,-19324.05634671,7.819e-05,2]
[423004646,1779743438000,-1284226.25840327,7.819e-05,2]
[423004648,1779743438000,-11350.50511955,7.819e-05,2]
[423004651,1779743438000,-1450.87922092,7.819e-05,2]
[423004650,1779743438000,-638.50730976,7.819e-05,2]
[423004649,1779743438000,-5000.0,7.819e-05,2]
[423004661,1779743440000,-154870.02332179,7.819e-05,2]
[423004662,1779743440000,-15619.67238213,7.819e-05,2]
[423004659,1779743440000,-2194.20470912,7.819e-05,2]
[423004660,1779743440000,-469.07870949,7.819e-05,2]
[423004681,1779743444000,-200.0,7.819e-05,2]
[423004680,1779743444000,-1221.69347734,7.819e-05,2]
[423004683,1779743444000,-315.43947192,7.861e-05,2]
[423004684,1779743444000,-315.43947192,7.881e-05,2]
[423004693,1779743444000,-500.0,7.918e-05,2]
[423004682,1779743444000,-315.43947194,7.842e-05,2]
[423004686,1779743444000,-500.0,7.918e-05,2]
[423004688,1779743444000,-500.0,7.918e-05,2]
[423004685,1779743444000,-315.43947192,7.9e-05,2]
[423004697,1779743444000,-485.41396517,7.918e-05,2]
[423004698,1779743444000,-3446.79036979,7.919e-05,2]
[423004687,1779743444000,-500.0,7.918e-05,2]
[423004706,1779743446000,-808.68378129,7.919e-05,2]
[423004705,1779743446000,-744.52584892,7.919e-05,2]
[423004704,1779743446000,-1099.77415108,6.986e-05,2]
[423004707,1779743447000,-53.70022197,7.919e-05,2]
[423004708,1779743447000,-4946.29977803,7.919e-05,2]
[423004710,1779743447000,-467.60136349,8e-05,2]
[423004712,1779743447000,-1745.2059074,8.018e-05,2]
[423004714,1779743447000,-29367.0158647,8.019e-05,2]
[423004713,1779743447000,-10628.7910152,8.019e-05,2]
[423004711,1779743447000,-160.0,8.017e-05,2]
[423004709,1779743447000,-315.43947192,7.919e-05,2]
[423004716,1779743486000,-2192.6329,7.719e-05,2]
[423004717,1779743509000,-210.40133019,7.661e-05,2]
[423004718,1779743562000,-300.0,7.718e-05,2]
[423004719,1779743781000,152.0,0.00014728,30]
[423004720,1779743802000,152.0,0.00014728,30]
[423004722,1779743970000,-2192.6329,6.786e-05,2]
[423004736,1779744550000,152.0,0.00014728,30]
[423004737,1779744569000,152.0,0.00014728,30]
[423004765,1779744632000,-300.0,6.022e-05,2]
[423004766,1779744632000,-420.0,6.022e-05,2]
[423004769,1779744632000,-500.0,6.37e-05,2]
[423004772,1779744632000,-500.0,6.37e-05,2]
[423004768,1779744632000,-334.0,6.369e-05,2]
[423004773,1779744632000,-347.86915654,6.37e-05,2]
[423004770,1779744632000,-185.58313279,6.37e-05,2]
[423004767,1779744632000,-1434.951248,6.259e-05,2]
[423004771,1779744632000,-500.0,6.37e-05,2]
[423004781,1779744632000,-500.0,6.37e-05,2]
[423004774,1779744632000,-500.0,6.37e-05,2]
[423004777,1779744632000,-136.69976381,6.37e-05,2]
[423004776,1779744632000,-500.0,6.37e-05,2]
[423004778,1779744632000,-363.30023619,6.37e-05,2]
[423004785,1779744632000,-602.60297876,6.37e-05,2]
[423004779,1779744632000,-500.0,6.37e-05,2]
[423004782,1779744632000,-500.0,6.37e-05,2]
[423004780,1779744632000,-500.0,6.37e-05,2]
[423004784,1779744632000,-500.0,6.37e-05,2]
[423004764,1779744632000,-392.0,6.022e-05,2]
[423004775,1779744632000,-500.0,6.37e-05,2]
[423004762,1779744632000,-1680.0,5.962e-05,2]
[423004760,1779744632000,-300.0,5.528e-05,2]
[423004738,1779744632000,-1615.41151946,5.367e-05,2]
[423004740,1779744632000,-1200.0,5.42e-05,2]
[423004739,1779744632000,-3384.58848054,5.367e-05,2]
[423004742,1779744632000,-3705.20580993,5.421e-05,2]
[423004741,1779744632000,-1294.79419007,5.421e-05,2]
[423004743,1779744632000,-300.0,5.474e-05,2]
[423004744,1779744632000,-300.0,5.474e-05,2]
[423004746,1779744632000,-300.0,5.474e-05,2]
[423004748,1779744632000,-300.0,5.474e-05,2]
[423004750,1779744632000,-2670.0738311,5.476e-05,2]
[423004753,1779744632000,-300.0,5.528e-05,2]
[423004756,1779744632000,-300.0,5.528e-05,2]
[423004752,1779744632000,-300.0,5.528e-05,2]
[423004754,1779744632000,-300.0,5.528e-05,2]
[423004755,1779744632000,-300.0,5.528e-05,2]
[423004758,1779744632000,-300.0,5.528e-05,2]
[423004757,1779744632000,-300.0,5.528e-05,2]
[423004761,1779744632000,-300.0,5.528e-05,2]
[423004759,1779744632000,-300.0,5.528e-05,2]
[423004763,1779744632000,-1434.951248,6.007e-05,2]
[423004783,1779744632000,-257.33237174,6.37e-05,2]
[423004847,1779744632000,-500.0,6.37e-05,2]
[423004786,1779744632000,-500.0,6.37e-05,2]
[423004818,1779744632000,-500.0,6.37e-05,2]
[423004820,1779744632000,-500.0,6.37e-05,2]
[423004831,1779744632000,-500.0,6.37e-05,2]
[423004822,1779744632000,-500.0,6.37e-05,2]
[423004825,1779744632000,-500.0,6.37e-05,2]
[423004826,1779744632000,-500.0,6.37e-05,2]
[423004828,1779744632000,-500.0,6.37e-05,2]
[423004837,1779744632000,-500.0,6.37e-05,2]
[423004833,1779744632000,-500.0,6.37e-05,2]
[423004829,1779744632000,-500.0,6.37e-05,2]
[423004823,1779744632000,-500.0,6.37e-05,2]
[423004839,1779744632000,-500.0,6.37e-05,2]
[423004841,1779744632000,-500.0,6.37e-05,2]
[423004843,1779744632000,-500.0,6.37e-05,2]
[423004845,1779744632000,-500.0,6.37e-05,2]
[423004853,1779744632000,-500.0,6.37e-05,2]
[423004849,1779744632000,-500.0,6.37e-05,2]
[423004851,1779744632000,-500.0,6.37e-05,2]
[423004787,1779744632000,-500.0,6.37e-05,2]
[423004816,1779744632000,-500.0,6.37e-05,2]
[423004805,1779744632000,-500.0,6.37e-05,2]
[423004835,1779744632000,-500.0,6.37e-05,2]
[423004807,1779744632000,-500.0,6.37e-05,2]
[423004789,1779744632000,-215.43759162,6.37e-05,2]
[423004788,1779744632000,-500.0,6.37e-05,2]
[423004809,1779744632000,-500.0,6.37e-05,2]
[423004790,1779744632000,-500.0,6.37e-05,2]
[423004794,1779744632000,-500.0,6.37e-05,2]
[423004793,1779744632000,-500.0,6.37e-05,2]
[423004795,1779744632000,-500.0,6.37e-05,2]
[423004792,1779744632000,-500.0,6.37e-05,2]
[423004796,1779744632000,-174.70391993,6.37e-05,2]
[423004797,1779744632000,-500.0,6.37e-05,2]
[423004791,1779744632000,-500.0,6.37e-05,2]
[423004798,1779744632000,-500.0,6.37e-05,2]
[423004801,1779744632000,-500.0,6.37e-05,2]
[423004811,1779744632000,-500.0,6.37e-05,2]
[423004813,1779744632000,-500.0,6.37e-05,2]
[423004815,1779744632000,-500.0,6.37e-05,2]
[423004800,1779744632000,-500.0,6.37e-05,2]
[423004802,1779744632000,-500.0,6.37e-05,2]
[423004804,1779744632000,-500.0,6.37e-05,2]
[423004799,1779744632000,-500.0,6.37e-05,2]
[423004871,1779744633000,-500.0,6.37e-05,2]
[423004876,1779744633000,-267.470392,6.37e-05,2]
[423004875,1779744633000,-500.0,6.37e-05,2]
[423004886,1779744633000,-556.32484258,6.403e-05,2]
[423004884,1779744633000,-499.99999999,6.37e-05,2]
[423004880,1779744633000,-500.0,6.37e-05,2]
[423004882,1779744633000,-500.0,6.37e-05,2]
[423004855,1779744633000,-500.0,6.37e-05,2]
[423004865,1779744633000,-500.0,6.37e-05,2]
[423004867,1779744633000,-500.0,6.37e-05,2]
[423004861,1779744633000,-500.0,6.37e-05,2]
[423004859,1779744633000,-500.0,6.37e-05,2]
[423004857,1779744633000,-500.0,6.37e-05,2]
[423004863,1779744633000,-500.0,6.37e-05,2]
[423004873,1779744633000,-500.0,6.37e-05,2]
[423004869,1779744633000,-500.0,6.37e-05,2]
[423004878,1779744633000,-500.0,6.37e-05,2]
[423004911,1779744633000,-1014.68018827,6.499e-05,2]
[423004890,1779744633000,-1014.68018827,6.499e-05,2]
[423004888,1779744633000,-753.12238292,6.422e-05,2]
[423004924,1779744633000,-519.53415352,6.499e-05,2]
[423004922,1779744633000,-1014.68018827,6.499e-05,2]
[423004917,1779744633000,-1014.68018827,6.499e-05,2]
[423004915,1779744633000,-1014.68018827,6.499e-05,2]
[423004913,1779744633000,-1014.68018827,6.499e-05,2]
[423004902,1779744633000,-1014.68018827,6.499e-05,2]
[423004900,1779744633000,-1014.68018827,6.499e-05,2]
[423004919,1779744633000,-1014.68018827,6.499e-05,2]
[423004909,1779744633000,-1014.68018827,6.499e-05,2]
[423004905,1779744633000,-1014.68018827,6.499e-05,2]
[423004907,1779744633000,-1014.68018827,6.499e-05,2]
[423004898,1779744633000,-1014.68018827,6.499e-05,2]
[423004896,1779744633000,-1014.68018827,6.499e-05,2]
[423004894,1779744633000,-1014.68018827,6.499e-05,2]
[423004903,1779744633000,-1014.68018827,6.499e-05,2]
[423004892,1779744633000,-1014.68018827,6.499e-05,2]
[423005088,1779744638000,-244256.94157486,6.686e-05,2]
[423005093,1779744638000,-2751.46655273,6.816e-05,2]
[423005089,1779744638000,-418121.99327916,6.686e-05,2]
[423005090,1779744638000,-797.03562493,6.694e-05,2]
[423005091,1779744638000,-1875.05910261,6.716e-05,2]
[423005092,1779744638000,-1434.951248,6.765e-05,2]
[423005098,1779744638000,-151.0,7.061e-05,2]
[423005096,1779744638000,-3291.02998569,7.016e-05,2]
[423005097,1779744638000,-1434.951248,7.018e-05,2]
[423005100,1779744638000,-3830.59341882,7.189e-05,2]
[423005087,1779744638000,-587.0,6.624e-05,2]
[423005099,1779744638000,-3671.57035741,7.116e-05,2]
[423005094,1779744638000,-600.0,6.818e-05,2]
[423005086,1779744638000,-976.80347521,6.616e-05,2]
[423005077,1779744638000,-300.0,5.528e-05,2]
[423005095,1779744638000,-2773.31473001,6.916e-05,2]
[423005084,1779744638000,-2351.0,6.558e-05,2]
[423005080,1779744638000,-1578.56682164,6.5e-05,2]
[423005082,1779744638000,-1938.83503925,6.5e-05,2]
[423005083,1779744638000,-1434.951248,6.512e-05,2]
[423005079,1779744638000,-151.0,6.5e-05,2]
[423005081,1779744638000,-1768.34668961,6.5e-05,2]
[423005078,1779744638000,-300.0,5.528e-05,2]
[423005076,1779744638000,-300.0,5.528e-05,2]
[423005075,1779744638000,-300.0,5.528e-05,2]
[423005073,1779744638000,-5000.0,5.313e-05,2]
[423005074,1779744638000,-300.0,5.528e-05,2]
[423005106,1779744638000,-743.00767161,7.42e-05,2]
[423005085,1779744638000,-5443.9018637,6.565e-05,2]
[423005105,1779744638000,-823.0,7.287e-05,2]
[423005120,1779744638000,-326.0270599,7.883e-05,2]
[423005101,1779744638000,-797.03562492,7.212e-05,2]
[423005103,1779744638000,-593.3159504,7.238e-05,2]
[423005133,1779744638000,-1644.4792,8.219e-05,2]
[423005134,1779744638000,-500.0,8.219e-05,2]
[423005125,1779744638000,-2603.0,7.935e-05,2]
[423005130,1779744638000,-160.0,8.01e-05,2]
[423005124,1779744638000,-326.0270599,7.905e-05,2]
[423005121,1779744638000,-151.0,7.883e-05,2]
[423005131,1779744638000,-1152.0,8.015e-05,2]
[423005127,1779744638000,-459.87014751,8e-05,2]
[423005128,1779744638000,-459.8701475,8.004e-05,2]
[423005126,1779744638000,-152.0,7.963e-05,2]
[423005129,1779744638000,-160.0,8.01e-05,2]
[423005123,1779744638000,-151.0,7.905e-05,2]
[423005122,1779744638000,-280.9345102,7.883e-05,2]
[423005132,1779744638000,-160.0,8.213e-05,2]
[423005109,1779744638000,-6218.36958488,7.6e-05,2]
[423005104,1779744638000,-1434.951248,7.271e-05,2]
[423005107,1779744638000,-720.0,7.5e-05,2]
[423005111,1779744638000,-2900.7801863,7.822e-05,2]
[423005102,1779744638000,-3292.0,7.214e-05,2]
[423005113,1779744638000,-88547.8928808,7.822e-05,2]
[423005114,1779744638000,-1801.6081985,7.822e-05,2]
[423005119,1779744638000,-456.7200949,7.883e-05,2]
[423005115,1779744638000,-1846.2265378,7.823e-05,2]
[423005110,1779744638000,-797.03562492,7.731e-05,2]
[423005118,1779744638000,-430.3802752,7.882e-05,2]
[423005116,1779744638000,-157.5778989,7.823e-05,2]
[423005117,1779744638000,-288.3803792,7.882e-05,2]
[423005108,1779744638000,-4370.15685195,7.554e-05,2]
[423005112,1779744638000,-210.1038652,7.822e-05,2]
[423005169,1779744639000,-500.0,8.219e-05,2]
[423005162,1779744639000,-510.86593597,8.219e-05,2]
[423005161,1779744639000,-500.0,8.219e-05,2]
[423005179,1779744639000,-500.0,8.219e-05,2]
[423005165,1779744639000,-384.76808575,8.219e-05,2]
[423005158,1779744639000,-500.0,8.219e-05,2]
[423005163,1779744639000,-500.0,8.219e-05,2]
[423005164,1779744639000,-554.43558451,8.219e-05,2]
[423005160,1779744639000,-500.0,8.219e-05,2]
[423005166,1779744639000,-500.0,8.219e-05,2]
[423005173,1779744639000,-500.0,8.219e-05,2]
[423005167,1779744639000,-502.69003919,8.219e-05,2]
[423005170,1779744639000,-500.0,8.219e-05,2]
[423005171,1779744639000,-500.0,8.219e-05,2]
[423005172,1779744639000,-500.0,8.219e-05,2]
[423005174,1779744639000,-500.0,8.219e-05,2]
[423005175,1779744639000,-500.0,8.219e-05,2]
[423005176,1779744639000,-500.0,8.219e-05,2]
[423005178,1779744639000,-500.0,8.219e-05,2]
[423005159,1779744639000,-500.20385964,8.219e-05,2]
[423005168,1779744639000,-500.0,8.219e-05,2]
[423005155,1779744639000,-517.19900279,8.219e-05,2]
[423005138,1779744639000,-500.0,8.219e-05,2]
[423005154,1779744639000,-831.81,8.219e-05,2]
[423005181,1779744639000,-500.0,8.219e-05,2]
[423005144,1779744639000,-500.0,8.219e-05,2]
[423005136,1779744639000,-500.0,8.219e-05,2]
[423005135,1779744639000,-595.03,8.219e-05,2]
[423005145,1779744639000,-500.0,8.219e-05,2]
[423005139,1779744639000,-500.0,8.219e-05,2]